fUSD/lending_fUSD_20250607
["ID","MTS","AMOUNT","RATE_DAILY","PERIOD"]
[364852089,1749275456461,-151.0,0.00027561,7]
[364852090,1749275456470,-151.0,0.00027561,7]
[364852091,1749275456479,-6191.071096,0.00027561,7]
[364852092,1749275456494,-518.76273438,0.00027561,5]
[364852093,1749275456504,-311.02779727,0.00027561,5]
[364852094,1749275456514,-480.0,0.00027561,5]
[364852095,1749275456523,-6191.071096,0.00027561,7]
[364852096,1749275456534,-480.0,0.00027561,5]
[364852097,1749275456544,-480.0,0.00027561,5]
[364852098,1749275456554,-6191.071096,0.00027561,7]
[364852099,1749275456564,-923.96,0.00027561,5]
[364852100,1749275456573,-510.9642457,0.00027561,5]
[364852101,1749275456583,-1066.78,0.00027561,5]
[364852102,1749275456592,-151.0,0.00027561,7]
[364852103,1749275456601,-765.06,0.00027561,5]
[364852104,1749275456613,-151.0,0.00027561,7]
[364852105,1749275456622,-480.0,0.00027561,5]
[364852106,1749275456633,-480.0,0.00027561,5]
[364852107,1749275456642,-589.04,0.00027561,5]
[364852108,1749275456652,-508.43320556,0.00027561,5]
[364852109,1749275456661,-618.743293,0.00027561,7]
[364852110,1749275456671,-943.26,0.00027561,5]
[364852111,1749275456682,-618.743293,0.00027561,7]
[364852112,1749275456692,-480.0,0.00027561,5]
[364852113,1749275456704,-480.0,0.00027561,5]
[364852114,1749275456715,-871.81,0.00027561,5]
[364852115,1749275456725,-618.743293,0.00027561,7]
[364852116,1749275456735,-151.0,0.00027561,7]
[364852117,1749275456747,-151.0,0.00027561,7]
[364852118,1749275456757,-618.743293,0.00027561,7]
[364852119,1749275456767,-480.0,0.00027561,5]
[364852120,1749275456776,-480.0,0.00027561,5]
[364852121,1749275456788,-480.0,0.00027561,5]
[364852122,1749275456798,-616.5992571,0.00027561,5]
[364852123,1749275456808,-1182.54,0.00027561,5]
[364852124,1749275456818,-432.54508676,0.00027561,5]
[364852125,1749275456828,-480.0,0.00027561,5]
[364852126,1749275456839,-1648.23,0.00027561,5]
[364852127,1749275456850,-1744.26,0.00027561,5]
[364852128,1749275456861,-480.0,0.00027561,5]
[364852129,1749275456871,-2996.31,0.00027561,5]
[364852130,1749275456880,-480.0,0.00027561,5]
[364852131,1749275456889,-594.24,0.00027561,5]
[364852132,1749275456900,-1656.96,0.00027561,5]
[364852133,1749275456911,-480.0,0.00027561,5]
[364852134,1749275456922,-480.0,0.00027561,5]
[364852135,1749275456931,-581.99,0.00027561,5]
[364852136,1749275456941,-151.0,0.00027561,7]
[364852137,1749275456951,-480.0,0.00027561,5]
[364852138,1749275456961,-488.77685492,0.00027561,5]
[364852139,1749275456971,-480.0,0.00027561,5]
[364852140,1749275456981,-151.0,0.00027561,7]
[364852141,1749275456990,-4307.55,0.00027561,5]
[364852142,1749275457000,-151.0,0.00027561,7]
[364852143,1749275457010,-151.0,0.00027561,7]
[364852144,1749275457019,-358.024047,0.00027561,7]
[364852145,1749275457030,-629.18,0.00027561,5]
[364852146,1749275457039,-593.81,0.00027561,5]
[364852147,1749275457049,-480.0,0.00027561,5]
[364852148,1749275457058,-798.07,0.00027561,5]
[364852149,1749275457069,-594.43,0.00027561,5]
[364852150,1749275457079,-358.024047,0.00027561,7]
[364852151,1749275457089,-151.0,0.00027561,7]
[364852152,1749275457098,-480.0,0.00027561,5]
[364852153,1749275457108,-151.0,0.00027561,7]
[364852154,1749275457117,-480.0,0.00027561,5]
[364852155,1749275457128,-151.0,0.00027561,7]
[364852156,1749275457138,-151.0,0.00027561,7]
[364852157,1749275457154,-831.81,0.00027561,5]
[364852158,1749275457163,-5383.27,0.00027561,5]
[364852159,1749275457173,-480.0,0.00027561,5]
[364852160,1749275457183,-490.42543664,0.00027561,5]
[364852161,1749275457194,-480.0,0.00027561,5]
[364852162,1749275457203,-2090.28,0.00027561,5]
[364852163,1749275457212,-1267.21,0.00027561,5]
[364852164,1749275457222,-480.0,0.00027561,5]
[364852165,1749275457235,-10955.06,0.00027561,5]
[364852166,1749275457244,-959.52,0.00027561,5]
[364852167,1749275457255,-480.0,0.00027561,5]
[364852168,1749275457264,-5511.22,0.00027561,5]
[364852169,1749275457273,-7087.11,0.00027561,5]
[364852170,1749275457283,-480.0,0.00027561,5]
[364852171,1749275457292,-480.0,0.00027561,5]
[364852172,1749275457302,-2433.15,0.00027561,5]
[364852173,1749275457312,-151.0,0.00027561,7]
[364852174,1749275457322,-151.0,0.00027561,7]
[364852175,1749275457332,-480.0,0.00027561,5]
[364852176,1749275457342,-480.0,0.00027561,5]
[364852177,1749275457352,-800.24,0.00027561,5]
[364852178,1749275457362,-197.47693233,0.00027561,5]
[364852179,1749275457371,-1105.102924,0.00027561,7]
[364852180,1749275457381,-480.0,0.00027561,5]
[364852181,1749275457391,-480.0,0.00027561,5]
[364852182,1749275457401,-1105.102924,0.00027561,7]
[364852183,1749275457411,-151.0,0.00027561,7]
[364852184,1749275457420,-151.0,0.00027561,7]
[364852185,1749275457431,-1105.102924,0.00027561,7]
[364852186,1749275457440,-1105.102924,0.00027561,7]
[364852187,1749275457450,-1027.33,0.00027561,5]
[364852188,1749275457459,-1086.55,0.00027561,5]
[364852189,1749275457469,-151.0,0.00027561,7]
[364852190,1749275457479,-1813.57,0.00027561,5]
[364852191,1749275457500,-183.691151,0.00027561,7]
[364852192,1749275457512,-363.52855532,0.00027561,5]
[364852193,1749275457522,-151.0,0.00027561,7]
[364852194,1749275457532,-1367.55,0.00027561,5]
[364852195,1749275457542,-480.0,0.00027561,5]
[364852196,1749275457553,-1078.29,0.00027561,5]
[364852197,1749275457563,-151.0,0.00027561,7]
[364852198,1749275457574,-229.208143,0.00027561,7]
[364852199,1749275457584,-480.0,0.00027561,5]
[364852200,1749275457594,-2982.07,0.00027561,5]
[364852201,1749275457604,-7852.96,0.00027561,5]
[364852202,1749275457613,-1926.65,0.00027561,5]
[364852203,1749275457623,-480.0,0.00027561,5]
[364852204,1749275457633,-1720.22,0.00027561,5]
[364852205,1749275457643,-480.0,0.00027561,5]
[364852206,1749275457653,-1287.03,0.00027561,5]
[364852207,1749275457663,-596.48,0.00027561,5]
[364852208,1749275457673,-3698.26,0.00027561,5]
[364852209,1749275457682,-647.73,0.00027561,5]
[364852210,1749275457692,-480.0,0.00027561,5]
[364852211,1749275457702,-561.51,0.00027561,5]
[364852212,1749275457712,-480.0,0.00027561,5]
[364852213,1749275457722,-480.0,0.00027561,5]
[364852214,1749275457731,-480.0,0.00027561,5]
[364852215,1749275457741,-204.206251,0.00027561,7]
[364852216,1749275457752,-204.206251,0.00027561,7]
[364852217,1749275457762,-1325.93,0.00027561,5]
[364852218,1749275457772,-3481.74,0.00027561,5]
[364852219,1749275457782,-1912.4,0.00027561,2]
[364852220,1749275457791,-1909.93,0.00027561,5]
[364852221,1749275457801,-1205.05,0.00027561,5]
[364852222,1749275457810,-151.0,0.00027561,7]
[364852223,1749275457819,-151.0,0.00027561,7]
[364852224,1749275457829,-167.89061,0.00027561,7]
[364852225,1749275457839,-1000.0,0.00027561,5]
[364852226,1749275457849,-480.0,0.00027561,5]
[364852227,1749275457858,-204.206251,0.00027561,7]
[364852228,1749275457867,-204.206251,0.00027561,7]
[364852229,1749275457877,-473.31153417,0.00027561,5]
[364852230,1749275457887,-151.0,0.00027561,7]
[364852231,1749275457897,-569.38,0.00027561,5]
[364852232,1749275457907,-151.0,0.00027561,7]
[364852233,1749275457916,-480.0,0.00027561,5]
[364852234,1749275457931,-480.0,0.00027561,5]
[364852235,1749275457940,-480.0,0.00027561,5]
[364852236,1749275457949,-480.0,0.00027561,5]
[364852237,1749275457959,-480.0,0.00027561,5]
[364852238,1749275457969,-769.38,0.00027561,5]
[364852239,1749275457979,-63032.49,0.00027561,5]
[364852240,1749275457989,-846.16,0.00027561,5]
[364852241,1749275457998,-151.0,0.00027561,7]
[364852242,1749275458008,-480.0,0.00027561,5]
[364852243,1749275458018,-480.0,0.00027561,5]
[364852244,1749275458027,-2534.32,0.00027561,5]
[364852245,1749275458038,-480.0,0.00027561,5]
[364852246,1749275458048,-382.2513612,0.00027561,5]
[364852247,1749275458058,-480.0,0.00027561,5]
[364852248,1749275458068,-3160.19,0.00027561,5]
[364852249,1749275458078,-151.0,0.00027561,7]
[364852250,1749275458088,-755.58,0.00027561,5]
[364852251,1749275458098,-480.0,0.00027561,5]
[364852252,1749275458108,-1597.05,0.00027561,5]
[364852253,1749275458117,-151.0,0.00027561,7]
[364852254,1749275458127,-5855.72,0.00027561,5]
[364852255,1749275458137,-480.0,0.00027561,5]
[364852256,1749275458148,-11381.49,0.00027561,5]
[364852257,1749275458161,-480.0,0.00027561,5]
[364852258,1749275458171,-151.0,0.00027561,7]
[364852259,1749275458183,-151.0,0.00027561,7]
[364852260,1749275458196,-1244.3,0.00027561,5]
[364852261,1749275458207,-480.0,0.00027561,5]
[364852262,1749275458218,-480.0,0.00027561,5]
[364852263,1749275458231,-1738.26,0.00027561,5]
[364852264,1749275458242,-480.0,0.00027561,2]
[364852265,1749275458254,-345.52919244,0.00027561,5]
[364852266,1749275458265,-3704.48,0.00027561,5]
[364852267,1749275458276,-480.0,0.00027561,5]
[364852268,1749275458287,-480.0,0.00027561,5]
[364852269,1749275458298,-1045.76,0.00027561,5]
[364852270,1749275458308,-151.0,0.00027561,7]
[364852271,1749275458319,-735.86,0.00027561,5]
[364852272,1749275458330,-480.0,0.00027561,5]
[364852273,1749275458341,-1516.04,0.00027561,5]
[364852274,1749275458352,-291.24343046,0.00027561,5]
[364852275,1749275458364,-1047.58,0.00027561,5]
[364852276,1749275458379,-1602.25,0.00027561,5]
[364852277,1749275458391,-961.5,0.00027561,5]
[364852278,1749275458402,-749.45,0.00027561,5]
[364852279,1749275458412,-480.0,0.00027561,5]
[364852280,1749275458424,-480.0,0.00027561,5]
[364852281,1749275458436,-480.0,0.00027561,5]
[364852282,1749275458447,-714.3,0.00027561,5]
[364852283,1749275458458,-151.0,0.00027561,7]
[364852284,1749275458468,-151.0,0.00027561,7]
[364852285,1749275458479,-1392.55,0.00027561,5]
[364852286,1749275458490,-1271.75,0.00027561,5]
[364852287,1749275458502,-2908.68,0.00027561,5]
[364852288,1749275458512,-480.0,0.00027561,5]
[364852289,1749275458523,-480.0,0.00027561,5]
[364852290,1749275458535,-480.0,0.00027561,5]
[364852291,1749275458548,-742.56,0.00027561,5]
[364852292,1749275458559,-480.0,0.00027561,5]
[364852293,1749275458570,-571.8,0.00027561,5]
[364852294,1749275458581,-1714.36,0.00027561,5]
[364852295,1749275458591,-932.26,0.00027561,5]
[364852296,1749275458602,-5571.7,0.00027561,5]
[364852297,1749275458612,-509.78561401,0.00027561,5]
[364852298,1749275458623,-480.0,0.00027561,5]
[364852299,1749275458634,-871.56,0.00027561,5]
[364852300,1749275458644,-524.34401014,0.00027561,5]
[364852301,1749275458655,-1450.59,0.00027561,5]
[364852302,1749275458665,-480.0,0.00027561,5]
[364852303,1749275458676,-1122.69,0.00027561,5]
[364852304,1749275458686,-1529.93,0.00027561,5]
[364852305,1749275458696,-480.0,0.00027561,5]
[364852306,1749275458706,-480.0,0.00027561,5]
[364852307,1749275458716,-5767.87,0.00027561,5]
[364852308,1749275458726,-2513.87,0.00027561,5]
[364852309,1749275458736,-490.12387281,0.00027561,5]
[364852310,1749275458747,-496.04183179,0.00027561,5]
[364852311,1749275458758,-480.0,0.00027561,5]
[364852312,1749275458768,-747.9,0.00027561,5]
[364852313,1749275458778,-1569.25,0.00027561,5]
[364852314,1749275458789,-480.0,0.00027561,5]
[364852315,1749275458799,-4023.49,0.00027561,5]
[364852316,1749275458814,-484.57333225,0.00027561,5]
[364852317,1749275458825,-480.0,0.00027561,5]
[364852318,1749275458835,-1345.91,0.00027561,5]
[364852319,1749275458846,-4322.98,0.00027561,5]
[364852320,1749275458859,-480.0,0.00027561,5]
[364852321,1749275458870,-494.08,0.00027561,5]
[364852322,1749275458880,-819.83,0.00027561,5]
[364852323,1749275458891,-480.0,0.00027561,5]
[364852324,1749275458901,-687.89,0.00027561,5]
[364852325,1749275458911,-480.0,0.00027561,5]
[364852326,1749275458922,-480.0,0.00027561,5]
[364852327,1749275458933,-480.0,0.00027561,5]
[364852328,1749275458944,-3258.93,0.00027561,5]
[364852329,1749275458954,-480.0,0.00027561,5]
[364852330,1749275458965,-480.0,0.00027561,5]
[364852331,1749275458978,-480.0,0.00027561,5]
[364852332,1749275458989,-480.0,0.00027561,5]
[364852333,1749275459001,-998.9,0.00027561,5]
[364852334,1749275459011,-480.0,0.00027561,5]
[364852335,1749275459021,-480.0,0.00027561,5]
[364852336,1749275459032,-1521.99,0.00027561,5]
[364852337,1749275459042,-480.0,0.00027561,5]
[364852338,1749275459054,-480.0,0.00027561,5]
[364852339,1749275459063,-480.0,0.00027561,5]
[364852340,1749275459073,-480.0,0.00027561,5]
[364852341,1749275459084,-1993.68,0.00027561,5]
[364852342,1749275459095,-633.62,0.00027561,5]
[364852343,1749275459107,-3750.22,0.00027561,5]
[364852344,1749275459118,-480.0,0.00027561,5]
[364852345,1749275459130,-480.0,0.00027561,5]
[364852346,1749275459140,-1168.37,0.00027561,5]
[364852347,1749275459158,-812.77,0.00027561,5]
[364852348,1749275459169,-480.0,0.00027561,5]
[364852349,1749275459179,-12535.73,0.00027561,5]
[364852350,1749275459192,-480.0,0.00027561,5]
[364852351,1749275459203,-513.52,0.00027561,5]
[364852352,1749275459214,-480.0,0.00027561,5]
[364852353,1749275459226,-1806.88,0.00027561,5]
[364852354,1749275459249,-521.13,0.00027561,5]
[364852355,1749275459261,-2045.24,0.00027561,5]
[364852356,1749275459274,-528.49627371,0.00027561,5]
[364852357,1749275459285,-480.0,0.00027561,5]
[364852358,1749275459296,-2237.15,0.00027561,5]
[364852359,1749275459307,-241.17133925,0.00027561,5]
[364852360,1749275459319,-480.0,0.00027561,5]
[364852361,1749275459330,-484.51,0.00027561,5]
[364852362,1749275459341,-1414.74,0.00027561,5]
[364852363,1749275459352,-151.0,0.00027561,7]
[364852364,1749275459365,-229.65088964,0.00027561,5]
[364852365,1749275459376,-719.02,0.00027561,5]
[364852366,1749275459387,-480.0,0.00027561,5]
[364852367,1749275459399,-1721.85,0.00027561,5]
[364852368,1749275459411,-658.17,0.00027561,5]
[364852369,1749275459422,-1125.11,0.00027561,5]
[364852370,1749275459434,-1927.59,0.00027561,5]
[364852371,1749275459445,-151.0,0.00027561,7]
[364852372,1749275459457,-776.34,0.00027561,5]
[364852373,1749275459468,-749.65,0.00027561,5]
[364852374,1749275459479,-697.95,0.00027561,5]
[364852375,1749275459491,-480.0,0.00027561,5]
[364852376,1749275459503,-518.53857428,0.00027561,5]
[364852377,1749275459514,-518.65,0.00027561,5]
[364852378,1749275459525,-480.0,0.00027561,5]
[364852379,1749275459537,-480.0,0.00027561,5]
[364852380,1749275459548,-2031.28,0.00027561,5]
[364852381,1749275459559,-1830.02,0.00027561,5]
[364852382,1749275459570,-151.0,0.00027561,7]
[364852383,1749275459581,-480.0,0.00027561,5]
[364852384,1749275459593,-565.41,0.00027561,5]
[364852385,1749275459604,-757.09,0.00027561,5]
[364852386,1749275459615,-480.0,0.00027561,5]
[364852387,1749275459626,-1739.86,0.00027561,5]
[364852388,1749275459636,-480.0,0.00027561,5]
[364852389,1749275459647,-480.0,0.00027561,5]
[364852390,1749275459658,-886.47,0.00027561,5]
[364852391,1749275459674,-10865.99,0.00027561,5]
[364852392,1749275459685,-480.0,0.00027561,5]
[364852393,1749275459697,-480.0,0.00027561,5]
[364852394,1749275459708,-644.76,0.00027561,5]
[364852395,1749275459720,-1387.38,0.00027561,5]
[364852396,1749275459730,-1102.12,0.00027561,5]
[364852397,1749275459742,-480.0,0.00027561,5]
[364852398,1749275459753,-480.0,0.00027561,5]
[364852399,1749275459764,-1440.45,0.00027561,5]
[364852400,1749275459775,-151.0,0.00027561,7]
[364852401,1749275459787,-480.0,0.00027561,5]
[364852402,1749275459798,-642.18,0.00027561,5]
[364852403,1749275459808,-686.12,0.00027561,5]
[364852404,1749275459819,-480.0,0.00027561,5]
[364852405,1749275459831,-480.0,0.00027561,5]
[364852406,1749275459841,-480.0,0.00027561,5]
[364852407,1749275459853,-480.0,0.00027561,5]
[364852408,1749275459863,-480.0,0.00027561,5]
[364852409,1749275459874,-7442.43,0.00027561,5]
[364852410,1749275459885,-480.0,0.00027561,5]
[364852411,1749275459895,-501.31113027,0.00027561,5]
[364852412,1749275459906,-480.0,0.00027561,5]
[364852413,1749275459916,-480.0,0.00027561,5]
[364852414,1749275459927,-3308.39,0.00027561,5]
[364852415,1749275459937,-480.0,0.00027561,5]
[364852416,1749275459948,-646.52,0.00027561,5]
[364852417,1749275459959,-480.0,0.00027561,5]
[364852418,1749275459970,-2073.8,0.00027561,5]
[364852419,1749275459981,-498.46401065,0.00027561,5]
[364852420,1749275459992,-483.04,0.00027561,2]
[364852421,1749275460003,-480.0,0.00027561,5]
[364852422,1749275460014,-2227.22,0.00027561,5]
[364852423,1749275460026,-480.0,0.00027561,5]
[364852424,1749275460037,-16410.82,0.00027561,5]
[364852425,1749275460048,-480.0,0.00027561,5]
[364852426,1749275460059,-846.38,0.00027561,5]
[364852427,1749275460071,-1668.56,0.00027561,5]
[364852428,1749275460081,-485.16844509,0.00027561,5]
[364852429,1749275460097,-816.17,0.00027561,5]
[364852430,1749275460110,-480.0,0.00027561,2]
[364852431,1749275460121,-3612.7,0.00027561,5]
[364852432,1749275460133,-1442.32,0.00027561,5]
[364852433,1749275460144,-480.0,0.00027561,5]
[364852434,1749275460157,-154.81865164,0.00027566,2]
[364852435,1749275460168,-500.0,0.00027566,2]
[364852436,1749275460179,-557.0,0.00027566,2]
[364852437,1749275460190,-420.0,0.00027566,2]
[364852438,1749275460203,-500.0,0.00027566,2]
[364852439,1749275460216,-500.0,0.00027573,5]
[364852440,1749275460229,-500.0,0.00027573,5]
[364852441,1749275460241,-501.58070333,0.00027573,5]
[364852442,1749275460252,-500.0,0.00027573,5]
[364852443,1749275460263,-500.0,0.00027573,5]
[364852444,1749275460274,-159.92896135,0.00027573,5]
[364852445,1749275460285,-504.08643405,0.00027573,5]
[364852446,1749275460295,-500.0,0.00027573,5]
[364852447,1749275460306,-500.0,0.00027573,5]
[364852448,1749275460316,-150.0,0.00027579,2]
[364852449,1749275460327,-454.90789797,0.0002759,17]
[364852450,1749275460338,-211.0,0.0002759,2]
[364852451,1749275460349,-151.0,0.00027593,7]
[364852452,1749275460360,-151.0,0.00027593,7]
[364852453,1749275460371,-500.0,0.00027594,2]
[364852454,1749275460382,-557.0,0.00027594,2]
[364852455,1749275460392,-420.0,0.00027594,2]
[364852456,1749275460403,-304.04309163,0.00027594,2]
[364852457,1749275460414,-14121.29,0.000276,2]
[364852458,1749275460424,-151.0,0.000276,7]
[364852459,1749275460435,-151.0,0.000276,7]
[364852460,1749275460446,-162.037718,0.000276,7]
[364852461,1749275460457,-162.037718,0.000276,7]
[364852462,1749275460467,-249.534353,0.000276,7]
[364852463,1749275460478,-249.534353,0.000276,7]
[364852464,1749275460488,-743.803236,0.000276,7]
[364852465,1749275460498,-743.803236,0.000276,7]
[364852466,1749275460509,-151.0,0.000276,7]
[364852467,1749275460520,-289.758248,0.000276,7]
[364852468,1749275460535,-289.758248,0.000276,7]
[364852469,1749275460547,-151.0,0.000276,7]
[364852470,1749275460560,-153.017383,0.000276,7]
[364852471,1749275460571,-158.5237378,0.000276,2]
[364852472,1749275460582,-151.0,0.000276,7]
[364852473,1749275460594,-1000.0,0.000276,2]
[364852474,1749275460606,-151.0,0.00027612,7]
[364852475,1749275460994,-151.0,0.00027612,7]
[364852476,1749275461008,-738.58,0.00027613,2]
[364852477,1749275461019,-500.0,0.00027621,2]
[364852478,1749275461029,-557.0,0.00027621,2]
[364852479,1749275461040,-420.0,0.00027621,2]
[364852480,1749275461052,-12128.56731457,0.00027625,2]
[364852481,1749275461062,-151.0,0.00027631,7]
[364852482,1749275461076,-266.69515749,0.00027644,30]
[364852483,1749275461088,-151.0,0.00027644,7]
[364852484,1749275461098,-500.0,0.00027648,2]
[364852485,1749275461108,-557.0,0.00027648,2]
[364852486,1749275461118,-420.0,0.00027648,2]
[364852487,1749275461128,-1168.1807403,0.00027651,2]
[364852488,1749275461138,-802.72724827,0.0002767,2]
[364852489,1749275461148,-163.07524585,0.0002767,2]
[364852490,1749275461160,-169.0,0.00027671,14]
[364852491,1749275461170,-1000.0,0.00027674,7]
[364852492,1749275461180,-500.0,0.00027676,2]
[364852493,1749275461193,-557.0,0.00027676,2]
[364852494,1749275461203,-420.0,0.00027676,2]
[364852495,1749275461213,-1000.0,0.00027677,2]
[364852496,1749275461226,-153.285283,0.00027678,7]
[364852497,1749275461236,-151.0,0.00027678,7]
[364852498,1749275461247,-151.0,0.00027678,7]
[364852499,1749275461258,-151.0,0.00027678,7]
[364852500,1749275461269,-151.0,0.00027678,7]
[364852501,1749275461280,-151.0,0.00027678,7]
[364852502,1749275461289,-151.0,0.00027678,7]
[364852503,1749275461300,-151.0,0.00027678,7]
[364852504,1749275461311,-586.40670693,0.0002768,2]
[364852505,1749275461322,-3665.00693311,0.00027685,2]
[364852506,1749275461333,-26265.35181076,0.00027685,2]
[364852507,1749275461343,-151.0,0.000277,7]
[364852508,1749275461354,-151.0,0.000277,7]
[364852509,1749275461365,-180.364341,0.000277,7]
[364852510,1749275461375,-180.364341,0.000277,7]
[364852511,1749275461386,-157.072117,0.000277,7]
[364852512,1749275461404,-157.072117,0.000277,7]
[364852513,1749275461415,-1616.27433465,0.000277,5]
[364852514,1749275461426,-1100.0,0.000277,10]
[364852515,1749275461437,-500.0,0.00027703,2]
[364852516,1749275461449,-557.0,0.00027703,2]
[364852517,1749275461460,-420.0,0.00027703,2]
[364852518,1749275461470,-311.73744498,0.00027716,2]
[364852519,1749275461481,-829.68,0.00027725,5]
[364852520,1749275461492,-829.68,0.00027725,5]
[364852521,1749275461504,-3155.81,0.00027725,5]
[364852522,1749275461514,-3155.81,0.00027725,5]
[364852523,1749275461525,-151.0,0.00027726,7]
[364852524,1749275461535,-151.0,0.00027726,7]
[364852525,1749275461547,-151.0,0.00027726,7]
[364852526,1749275461558,-151.0,0.00027726,7]
[364852527,1749275461570,-151.0,0.00027726,7]
[364852528,1749275461580,-151.0,0.00027726,7]
[364852529,1749275461590,-151.0,0.00027726,7]
[364852530,1749275461601,-480.0,0.00027726,5]
[364852531,1749275461611,-480.0,0.00027726,5]
[364852532,1749275461622,-190.537295,0.00027726,7]
[364852533,1749275461632,-480.0,0.00027726,5]
[364852534,1749275461642,-161.28671056,0.00027726,5]
[364852535,1749275461652,-1712.784714,0.00027726,5]
[364852536,1749275461663,-151.0,0.00027726,7]
[364852537,1749275461676,-151.0,0.00027726,7]
[364852538,1749275461686,-2014.532933,0.00027726,5]
[364852539,1749275461697,-480.0,0.00027726,5]
[364852540,1749275461707,-151.0,0.00027726,7]
[364852541,1749275461718,-517.93019711,0.00027726,5]
[364852542,1749275461730,-382.74147213,0.00027726,5]
[364852543,1749275461740,-492.3366481,0.00027726,5]
[364852544,1749275461751,-480.0,0.00027726,5]
[364852545,1749275461763,-480.0,0.00027726,5]
[364852546,1749275461776,-480.0,0.00027726,5]
[364852547,1749275461786,-480.0,0.00027726,5]
[364852548,1749275461797,-571.94310867,0.00027726,5]
[364852549,1749275461807,-480.0,0.00027726,5]
[364852550,1749275461817,-480.0,0.00027726,5]
[364852551,1749275461828,-502.09465456,0.00027726,5]
[364852552,1749275461840,-501.9987913,0.00027726,5]
[364852553,1749275461850,-480.0,0.00027726,5]
[364852554,1749275461861,-480.0,0.00027726,5]
[364852555,1749275461871,-151.0,0.00027726,7]
[364852556,1749275461881,-480.0,0.00027726,5]
[364852557,1749275461892,-151.0,0.00027726,7]
[364852558,1749275461902,-484.03963335,0.00027726,5]
[364852559,1749275461913,-480.0,0.00027726,5]
[364852560,1749275461924,-480.0,0.00027726,5]
[364852561,1749275461935,-244.94722977,0.00027726,5]
[364852562,1749275461946,-151.0,0.00027726,7]
[364852563,1749275461957,-514.60249879,0.00027726,5]
[364852564,1749275461968,-480.0,0.00027726,5]
[364852565,1749275461978,-151.0,0.00027726,7]
[364852566,1749275461989,-480.0,0.00027726,5]
[364852567,1749275461999,-480.0,0.00027726,5]
[364852568,1749275462010,-965.47,0.00027726,5]
[364852569,1749275462021,-466.56828403,0.00027726,5]
[364852570,1749275462031,-171.43902,0.00027726,7]
[364852571,1749275462041,-480.0,0.00027726,5]
[364852572,1749275462052,-480.0,0.00027726,5]
[364852573,1749275462062,-171.43902,0.00027726,7]
[364852574,1749275462071,-480.0,0.00027726,5]
[364852575,1749275462082,-480.0,0.00027726,5]
[364852576,1749275462092,-480.0,0.00027726,5]
[364852577,1749275462102,-151.0,0.00027726,7]
[364852578,1749275462112,-480.0,0.00027726,5]
[364852579,1749275462122,-480.0,0.00027726,5]
[364852580,1749275462132,-480.0,0.00027726,5]
[364852581,1749275462142,-480.0,0.00027726,5]
[364852582,1749275462153,-480.0,0.00027726,5]
[364852583,1749275462163,-151.0,0.00027726,7]
[364852584,1749275462172,-151.0,0.00027726,7]
[364852585,1749275462182,-232.622616,0.00027726,7]
[364852586,1749275462193,-151.0,0.00027726,7]
[364852587,1749275462202,-151.0,0.00027726,2]
[364852588,1749275462213,-151.0,0.00027726,2]